fUST/lending_fUST_20250127
["ID","MTS","AMOUNT","RATE_DAILY","PERIOD"]
[350512013,1737936640958,-2142.0,0.0002,3]
[350512015,1737936640967,-2142.0,0.0002,3]
[350512017,1737936640978,-2142.0,0.0002,3]
[350512020,1737936640988,-2142.0,0.0002,3]
[350512022,1737936640998,-700.0,0.0002,3]
[350512025,1737936641009,-21934.7387574,0.0002,2]
[350512027,1737936641020,-1226.70748368,0.0002,2]
[350512029,1737936641030,-354.76834925,0.0002,2]
[350512031,1737936641040,-99922.08660324,0.0002,2]
[350512033,1737936641051,-5436.0,0.0002,3]
[350512035,1737936641060,-2717.0,0.0002,3]
[350512037,1737936641070,-2717.0,0.0002,3]
[350512039,1737936641079,-2717.0,0.0002,3]
[350512041,1737936641089,-2717.0,0.0002,3]
[350512043,1737936641098,-1006.0,0.0002,3]
[350512045,1737936641108,-1004.0,0.0002,3]
[350512047,1737936641118,-1004.0,0.0002,3]
[350512049,1737936641128,-1004.0,0.0002,3]
[350512051,1737936641138,-10946.03892035,0.0002,2]
[350512054,1737936641149,-6954.88755365,0.0002,2]
[350512056,1737936641158,-15483.27613031,0.0002,2]
[350512057,1737936641168,-779.09,0.0002,2]
[350512059,1737936641177,-500.0,0.0002,2]
[350512061,1737936641186,-500.0,0.0002,2]
[350512064,1737936641196,-500.0,0.0002,2]
[350512066,1737936641206,-500.0,0.0002,2]
[350512068,1737936641215,-500.0,0.0002,2]
[350512070,1737936641228,-500.0,0.0002,2]
[350512072,1737936641238,-500.0,0.0002,2]
[350512074,1737936641248,-500.0,0.0002,2]
[350512076,1737936641258,-500.0,0.0002,2]
[350512077,1737936641267,-500.0,0.0002,2]
[350512080,1737936641277,-500.0,0.0002,2]
[350512082,1737936641287,-500.0,0.0002,2]
[350512083,1737936641296,-500.0,0.0002,2]
[350512086,1737936641305,-500.0,0.0002,2]
[350512088,1737936641315,-500.0,0.0002,2]
[350512090,1737936641325,-500.0,0.0002,2]
[350512092,1737936641335,-500.0,0.0002,2]
[350512094,1737936641344,-500.0,0.0002,2]
[350512096,1737936641354,-500.0,0.0002,2]
[350512098,1737936641363,-500.0,0.0002,2]
[350512100,1737936641372,-500.0,0.0002,2]
[350512102,1737936641381,-500.0,0.0002,2]
[350512104,1737936641390,-500.0,0.0002,2]
[350512106,1737936641400,-500.0,0.0002,2]
[350512108,1737936641410,-500.0,0.0002,2]
[350512110,1737936641419,-500.0,0.0002,2]
[350512112,1737936641428,-500.0,0.0002,2]
[350512114,1737936641437,-500.0,0.0002,2]
[350512116,1737936641447,-500.0,0.0002,2]
[350512118,1737936641457,-500.0,0.0002,2]
[350512120,1737936641470,-500.0,0.0002,2]
[350512122,1737936641479,-500.0,0.0002,2]
[350512124,1737936641490,-500.0,0.0002,2]
[350512125,1737936641498,-500.0,0.0002,2]
[350512126,1737936641508,-500.0,0.0002,2]
[350512127,1737936641517,-500.0,0.0002,2]
[350512128,1737936641525,-500.0,0.0002,2]
[350512129,1737936641534,-500.0,0.0002,2]
[350512130,1737936641543,-500.0,0.0002,2]
[350512131,1737936641553,-500.0,0.0002,2]
[350512132,1737936641562,-500.0,0.0002,2]
[350512133,1737936641573,-500.0,0.0002,2]
[350512134,1737936641586,-500.0,0.0002,2]
[350512135,1737936641597,-500.0,0.0002,2]
[350512136,1737936641606,-500.0,0.0002,2]
[350512137,1737936641615,-500.0,0.0002,2]
[350512138,1737936641624,-500.0,0.0002,2]
[350512139,1737936641636,-500.0,0.0002,2]
[350512141,1737936641648,-500.0,0.0002,2]
[350512143,1737936641658,-500.0,0.0002,2]
[350512145,1737936641667,-500.0,0.0002,2]
[350512147,1737936641677,-500.0,0.0002,2]
[350512149,1737936641687,-500.0,0.0002,2]
[350512151,1737936641700,-500.0,0.0002,2]
[350512153,1737936641710,-500.0,0.0002,2]
[350512155,1737936641719,-500.0,0.0002,2]
[350512157,1737936641729,-500.0,0.0002,2]
[350512159,1737936641739,-500.0,0.0002,2]
[350512161,1737936641747,-500.0,0.0002,2]
[350512163,1737936641756,-500.0,0.0002,2]
[350512165,1737936641768,-500.0,0.0002,2]
[350512167,1737936641777,-500.0,0.0002,2]
[350512169,1737936641787,-500.0,0.0002,2]
[350512171,1737936641796,-500.0,0.0002,2]
[350512173,1737936641805,-500.0,0.0002,2]
[350512175,1737936641814,-500.0,0.0002,2]
[350512177,1737936641825,-500.0,0.0002,2]
[350512179,1737936641834,-500.0,0.0002,2]
[350512181,1737936641843,-500.0,0.0002,2]
[350512197,1737936641974,-500.0,0.0002,2]
[350512199,1737936641984,-500.0,0.0002,2]
[350512201,1737936641993,-500.0,0.0002,2]
[350512203,1737936642002,-500.0,0.0002,2]
[350512205,1737936642012,-500.0,0.0002,2]
[350512206,1737936642023,-500.0,0.0002,2]
[350512209,1737936642033,-500.0,0.0002,2]
[350512211,1737936642042,-500.0,0.0002,2]
[350512213,1737936642052,-500.0,0.0002,2]
[350512215,1737936642061,-573.76,0.0002,2]
[350512217,1737936642071,-16357.25450095,0.0002,2]
[350512219,1737936642080,-1029.0,0.0002,3]
[350512221,1737936642090,-1029.0,0.0002,3]
[350512223,1737936642100,-1029.0,0.0002,3]
[350512225,1737936642109,-1029.0,0.0002,3]
[350512227,1737936642119,-246282.96141342,0.0002,2]
[350512232,1737936642161,-337.61499736,0.0002,2]
[350512234,1737936642178,-45649.11078262,0.0002,2]
[350512237,1737936642190,-9010.14188033,0.0002,2]
[350512239,1737936642202,-20638.0765886,0.0002,2]
[350512242,1737936642214,-304.82972928,0.0002,2]
[350512270,1737936642383,-47836.01473543,0.0002,2]
[350512275,1737936642398,-102500.0,0.0002,2]
[350512297,1737936642473,-395.0,0.00017375,2]
[350512301,1737936642483,-1200.0,0.00019973,2]
[350512304,1737936642492,-32504.57640614,0.0002,2]
[350512315,1737936642573,-21770.25282544,0.0002,2]
[350512346,1737936642855,-500.0,0.00016438,2]
[350512348,1737936642865,-500.0,0.00016575,2]
[350512350,1737936642874,-893190.45772257,0.0002,2]
[350512355,1737936642909,-1974.13322288,0.0002,2]
[350512357,1737936642920,-663.68409029,0.0002,2]
[350512363,1737936642964,-4963.6328044,0.0002,2]
[350512369,1737936643019,-7203.2311676,0.0002,2]
[350512525,1737936645886,-3711.65364382,0.0002,2]
[350512527,1737936645900,-54677.8312388,0.0002,2]
[350512529,1737936645912,-18123.4592565,0.0002,2]
[350512530,1737936645995,-1861.09647576,0.0002,2]
[350512533,1737936803369,164.808052,0.00013973,2]
[350512540,1737937194210,1000.0,0.000235,120]
[350512541,1737937312848,159.3526997,0.00016,13]
[350512570,1737937696025,164.808052,0.00013973,2]
[350512624,1737937836204,-5286.8389165,0.00015575,2]
[350512625,1737937836215,-159.3526997,0.00015939,2]
[350512626,1737937836224,-206.76584572,0.00016338,2]
[350512627,1737937836233,-500.0,0.00016438,2]
[350512628,1737937836243,-500.0,0.00016438,2]
[350512629,1737937836252,-500.0,0.00016438,2]
[350512630,1737937836261,-500.0,0.00016438,2]
[350512631,1737937836271,-500.0,0.00016438,2]
[350512632,1737937836280,-501.06283492,0.00016438,2]
[350512633,1737937836290,-500.0,0.00016438,2]
[350512634,1737937836299,-500.0,0.00016438,2]
[350512635,1737937836309,-240.3224408,0.00016438,2]
[350512636,1737937836319,-500.0,0.00016438,2]
[350512637,1737937836328,-500.0,0.00016438,2]
[350512638,1737937836338,-500.0,0.00016438,2]
[350512639,1737937836349,-500.0,0.00016438,2]
[350512640,1737937836359,-500.74,0.00016438,2]
[350512641,1737937836369,-500.0,0.00016438,2]
[350512643,1737937836379,-2777.71,0.00016438,2]
[350512645,1737937836389,-500.0,0.00016438,2]
[350512646,1737937836398,-500.0,0.00016438,2]
[350512647,1737937836408,-297.93002993,0.00016438,2]
[350512648,1737937836418,-284.31,0.00016438,2]
[350512649,1737937836428,-500.0,0.00016438,2]
[350512650,1737937836438,-766.97,0.00016438,2]
[350512651,1737937836448,-500.0,0.00016438,2]
[350512652,1737937836458,-500.0,0.00016438,2]
[350512653,1737937836468,-500.0,0.00016438,2]
[350512654,1737937836479,-500.0,0.00016438,2]
[350512655,1737937836489,-500.0,0.00016438,2]
[350512656,1737937836498,-500.0,0.00016438,2]
[350512657,1737937836508,-500.0,0.00016438,2]
[350512658,1737937836518,-500.0,0.00016438,2]
[350512659,1737937836527,-500.0,0.00016438,2]
[350512660,1737937836536,-500.0,0.00016438,2]
[350512661,1737937836547,-500.0,0.00016438,2]
[350512662,1737937836563,-500.0,0.00016438,2]
[350512663,1737937836572,-500.0,0.00016438,2]
[350512664,1737937836582,-4325.13,0.00016438,2]
[350512665,1737937836591,-4325.13,0.00016438,2]
[350512666,1737937836600,-500.0,0.00016438,2]
[350512667,1737937836610,-500.0,0.00016438,2]
[350512668,1737937836619,-500.0,0.00016438,2]
[350512669,1737937836628,-500.0,0.00016438,2]
[350512670,1737937836637,-120.16953696,0.00016438,2]
[350512680,1737937838255,-379.83046304,0.00016438,2]
[350512681,1737937838265,-500.0,0.00016438,2]
[350512682,1737937838275,-500.0,0.00016438,2]
[350512683,1737937838284,-500.0,0.00016438,2]
[350512684,1737937838293,-500.0,0.00016438,2]
[350512685,1737937838303,-500.0,0.00016438,2]
[350512686,1737937838312,-500.0,0.00016438,2]
[350512687,1737937838321,-939.3,0.00016438,2]
[350512688,1737937838330,-500.0,0.00016438,2]
[350512689,1737937838339,-500.0,0.00016438,2]
[350512690,1737937838348,-640.95,0.00016438,2]
[350512691,1737937838357,-500.0,0.00016438,2]
[350512692,1737937838367,-806.44,0.00016438,2]
[350512693,1737937838376,-500.0,0.00016438,2]
[350512694,1737937838385,-500.0,0.00016438,2]
[350512695,1737937838394,-235.7315983,0.00016438,2]
[350512696,1737937838405,-264.2684017,0.00016438,2]
[350512697,1737937838415,-500.0,0.00016438,2]
[350512698,1737937838424,-492.07159847,0.00016574,2]
[350512699,1737937838435,-3833.05840153,0.00016574,2]
[350512701,1737937838444,-500.0,0.00016575,2]
[350512703,1737937838453,-500.0,0.00016575,2]
[350512704,1737937838463,-611.4,0.00016575,2]
[350512705,1737937838473,-158.31,0.00016575,2]
[350512706,1737937838482,-500.0,0.00016575,2]
[350512708,1737937838492,-500.74,0.00016575,2]
[350512710,1737937838502,-500.0,0.00016575,2]
[350512712,1737937838511,-341.87777937,0.00016575,2]
[350512714,1737937838523,-2435.83222063,0.00016575,2]
[350512717,1737937838532,-500.0,0.00016575,2]
[350512719,1737937838542,-500.0,0.00016575,2]
[350512721,1737937838551,-500.0,0.00016575,2]
[350512723,1737937838560,-766.97,0.00016575,2]
[350512724,1737937838569,-500.0,0.00016575,2]
[350512725,1737937838580,-500.0,0.00016575,2]
[350512726,1737937838589,-500.0,0.00016575,2]
[350512727,1737937838599,-500.0,0.00016575,2]
[350512728,1737937838607,-500.0,0.00016575,2]
[350512729,1737937838617,-500.0,0.00016575,2]
[350512730,1737937838627,-500.0,0.00016575,2]
[350512731,1737937838734,-500.0,0.00016575,2]
[350512732,1737937838776,-500.0,0.00016575,2]
[350512733,1737937838785,-500.0,0.00016575,2]
[350512734,1737937838795,-500.0,0.00016575,2]
[350512735,1737937838804,-436.48,0.00016575,2]
[350512736,1737937838813,-500.0,0.00016575,2]
[350512737,1737937838823,-182.45431873,0.00016575,2]
[350512738,1737937838835,-268.18774228,0.00016575,2]
[350512739,1737937838867,-49.35793899,0.00016575,2]
[350512740,1737937838876,-939.3,0.00016575,2]
[350512741,1737937838885,-500.0,0.00016575,2]
[350512742,1737937838894,-500.0,0.00016575,2]
[350512743,1737937838903,-500.0,0.00016575,2]
[350512744,1737937838912,-806.44,0.00016575,2]
[350512745,1737937838921,-500.0,0.00016575,2]
[350512746,1737937838930,-500.0,0.00016575,2]
[350512747,1737937838939,-4325.13,0.00016711,2]
[350512748,1737937838948,-500.0,0.00016711,2]
[350512749,1737937838957,-500.0,0.00016712,2]
[350512750,1737937838966,-500.0,0.00016712,2]
[350512751,1737937838975,-500.0,0.00016712,2]
[350512752,1737937838985,-500.74,0.00016712,2]
[350512753,1737937838994,-500.0,0.00016712,2]
[350512754,1737937839003,-2777.71,0.00016712,2]
[350512755,1737937839013,-500.0,0.00016712,2]
[350512756,1737937839023,-500.0,0.00016712,2]
[350512757,1737937839033,-500.0,0.00016712,2]
[350512758,1737937839042,-766.97,0.00016712,2]
[350512759,1737937839051,-500.0,0.00016712,2]
[350512760,1737937839061,-607.19,0.00016712,2]
[350512761,1737937839070,-500.0,0.00016712,2]
[350512762,1737937839080,-500.0,0.00016712,2]
[350512763,1737937839089,-500.0,0.00016712,2]
[350512764,1737937839099,-500.0,0.00016712,2]
[350512765,1737937839114,-500.0,0.00016712,2]
[350512766,1737937839123,-500.0,0.00016712,2]
[350512767,1737937839132,-500.0,0.00016712,2]
[350512768,1737937839142,-500.0,0.00016712,2]
[350512769,1737937839151,-500.0,0.00016712,2]
[350512770,1737937839160,-500.0,0.00016712,2]
[350512771,1737937839169,-500.0,0.00016712,2]
[350512772,1737937839178,-939.3,0.00016712,2]
[350512773,1737937839187,-500.0,0.00016712,2]
[350512774,1737937839197,-612.49015185,0.00016712,2]
[350512775,1737937839206,-500.0,0.00016712,2]
[350512776,1737937839215,-806.44,0.00016712,2]
[350512777,1737937839224,-500.0,0.00016712,2]
[350512778,1737937839233,-500.0,0.00016712,2]
[350512779,1737937839242,-4325.13,0.00016848,2]
[350512780,1737937839252,-500.0,0.00016849,2]
[350512781,1737937839261,-500.0,0.00016849,2]
[350512782,1737937839270,-500.0,0.00016849,2]
[350512783,1737937839279,-500.74,0.00016849,2]
[350512784,1737937839289,-551.5,0.00016849,2]
[350512785,1737937839298,-2777.71,0.00016849,2]
[350512786,1737937839307,-500.0,0.00016849,2]
[350512787,1737937839316,-500.0,0.00016849,2]
[350512788,1737937839325,-500.0,0.00016849,2]
[350512789,1737937839335,-766.97,0.00016849,2]
[350512790,1737937839345,-500.0,0.00016849,2]
[350512791,1737937839356,-500.0,0.00016849,2]
[350512792,1737937839365,-500.0,0.00016849,2]
[350512793,1737937839375,-500.0,0.00016849,2]
[350512794,1737937839384,-500.0,0.00016849,2]
[350512795,1737937839394,-500.0,0.00016849,2]
[350512796,1737937839404,-500.0,0.00016849,2]
[350512798,1737937839413,-500.0,0.00016849,2]
[350512799,1737937839423,-500.0,0.00016849,2]
[350512800,1737937839433,-500.0,0.00016849,2]
[350512802,1737937839443,-500.0,0.00016849,2]
[350512803,1737937839453,-500.0,0.00016849,2]
[350512804,1737937839464,-939.3,0.00016849,2]
[350512805,1737937839473,-500.0,0.00016849,2]
[350512806,1737937839483,-500.0,0.00016849,2]
[350512807,1737937839492,-806.44,0.00016849,2]
[350512808,1737937839502,-500.0,0.00016849,2]
[350512809,1737937839512,-500.0,0.00016849,2]
[350512810,1737937839521,-4325.13,0.00016985,2]
[350512811,1737937839531,-500.0,0.00016986,2]
[350512812,1737937839541,-500.0,0.00016986,2]
[350512813,1737937839550,-500.0,0.00016986,2]
[350512814,1737937839560,-500.74,0.00016986,2]
[350512815,1737937839570,-2777.71,0.00016986,2]
[350512816,1737937839579,-500.0,0.00016986,2]
[350512817,1737937839590,-500.0,0.00016986,2]
[350512818,1737937839602,-500.0,0.00016986,2]
[350512819,1737937839611,-766.97,0.00016986,2]
[350512820,1737937839620,-500.0,0.00016986,2]
[350512821,1737937839629,-283.94,0.00016986,2]
[350512822,1737937839638,-500.0,0.00016986,2]
[350512823,1737937839648,-500.0,0.00016986,2]
[350512824,1737937839658,-500.0,0.00016986,2]
[350512826,1737937839667,-500.0,0.00016986,2]
[350512827,1737937839677,-218.14,0.00016986,2]
[350512828,1737937839686,-500.0,0.00016986,2]
[350512829,1737937839695,-500.0,0.00016986,2]
[350512830,1737937839704,-500.0,0.00016986,2]
[350512831,1737937839713,-500.0,0.00016986,2]
[350512833,1737937839722,-500.0,0.00016986,2]
[350512834,1737937839731,-939.3,0.00016986,2]
[350512835,1737937839740,-500.0,0.00016986,2]
[350512836,1737937839750,-500.0,0.00016986,2]
[350512837,1737937839759,-806.44,0.00016986,2]
[350512838,1737937839768,-500.0,0.00016986,2]
[350512840,1737937839777,-500.0,0.00016986,2]
[350512841,1737937839786,-500.0,0.00017065,2]
[350512842,1737937839795,-181.23764368,0.00017123,2]
[350512843,1737937839805,-345.69,0.00017123,2]
[350512844,1737937839814,-500.0,0.00017123,2]
[350512845,1737937839823,-500.74,0.00017123,2]
[350512846,1737937839832,-2777.71,0.00017123,2]
[350512847,1737937839841,-500.0,0.00017123,2]
[350512848,1737937839851,-500.0,0.00017123,2]
[350512849,1737937839860,-500.0,0.00017123,2]
[350512850,1737937839870,-766.97,0.00017123,2]
[350512851,1737937839879,-500.0,0.00017123,2]
[350512852,1737937839888,-500.0,0.00017123,2]
[350512853,1737937839898,-500.0,0.00017123,2]
[350512854,1737937839907,-500.0,0.00017123,2]
[350512855,1737937839916,-500.0,0.00017123,2]
[350512856,1737937839926,-500.0,0.00017123,2]
[350512857,1737937839935,-500.0,0.00017123,2]
[350512858,1737937839944,-500.0,0.00017123,2]
[350512859,1737937839953,-500.0,0.00017123,2]
[350512860,1737937839962,-500.0,0.00017123,2]
[350512861,1737937839971,-939.3,0.00017123,2]
[350512862,1737937839980,-500.0,0.00017123,2]
[350512863,1737937839989,-500.0,0.00017123,2]
[350512864,1737937839998,-806.44,0.00017123,2]
[350512865,1737937840008,-500.0,0.00017123,2]
[350512866,1737937840017,-500.0,0.00017123,2]
[350512867,1737937840032,-206.7658457,0.00017211,2]
[350512868,1737937840041,-4325.13,0.00017258,2]
[350512870,1737937840050,-505.80286648,0.00017259,2]
[350512872,1737937840061,-500.0,0.0001726,2]
[350512873,1737937840071,-500.74,0.0001726,2]
[350512874,1737937840080,-2777.71,0.0001726,2]
[350512875,1737937840092,-500.0,0.0001726,2]
[350512876,1737937840104,-500.0,0.0001726,2]
[350512877,1737937840114,-500.0,0.0001726,2]
[350512878,1737937840124,-766.97,0.0001726,2]
[350512879,1737937840133,-500.0,0.0001726,2]
[350512880,1737937840143,-500.0,0.0001726,2]
[350512881,1737937840152,-500.0,0.0001726,2]
[350512882,1737937840162,-500.0,0.0001726,2]
[350512883,1737937840171,-600.37,0.0001726,2]
[350512884,1737937840181,-500.0,0.0001726,2]
[350512885,1737937840191,-500.0,0.0001726,2]
[350512886,1737937840200,-500.0,0.0001726,2]
[350512887,1737937840209,-500.0,0.0001726,2]
[350512888,1737937840219,-500.0,0.0001726,2]
[350512889,1737937840228,-939.3,0.0001726,2]
[350512890,1737937840238,-500.0,0.0001726,2]
[350512891,1737937840247,-500.0,0.0001726,2]
[350512892,1737937840257,-806.44,0.0001726,2]
[350512893,1737937840266,-566.24,0.0001726,2]
[350512894,1737937840276,-500.0,0.0001726,2]
[350512895,1737937840286,-4325.13,0.00017396,2]
[350512896,1737937840296,-500.0,0.00017397,2]
[350512897,1737937840306,-500.74,0.00017397,2]
[350512898,1737937840316,-2777.71,0.00017397,2]
[350512899,1737937840328,-500.0,0.00017397,2]
[350512900,1737937840341,-500.0,0.00017397,2]
[350512901,1737937840352,-500.0,0.00017397,2]
[350512902,1737937840362,-766.97,0.00017397,2]
[350512903,1737937840372,-629.11875111,0.00017397,2]
[350512904,1737937840382,-500.0,0.00017397,2]
[350512905,1737937840390,-500.0,0.00017397,2]
[350512906,1737937840400,-500.0,0.00017397,2]
[350512907,1737937840410,-500.0,0.00017397,2]
[350512908,1737937840419,-500.0,0.00017397,2]
[350512909,1737937840429,-500.0,0.00017397,2]
[350512910,1737937840439,-500.0,0.00017397,2]
[350512911,1737937840447,-500.0,0.00017397,2]
[350512912,1737937840457,-939.3,0.00017397,2]
[350512913,1737937840466,-500.0,0.00017397,2]
[350512914,1737937840478,-500.0,0.00017397,2]
[350512915,1737937840488,-806.44,0.00017397,2]
[350512916,1737937840498,-500.0,0.00017397,2]
[350512917,1737937840507,-4325.13,0.00017533,2]
[350512918,1737937840517,-500.0,0.00017533,2]
[350512919,1737937840529,-500.0,0.00017534,2]
[350512920,1737937840539,-500.74,0.00017534,2]
[350512921,1737937840549,-2777.71,0.00017534,2]
[350512922,1737937840558,-500.0,0.00017534,2]
[350512923,1737937840568,-500.0,0.00017534,2]
[350512924,1737937840578,-500.0,0.00017534,2]
[350512925,1737937840588,-766.97,0.00017534,2]
[350512926,1737937840598,-500.0,0.00017534,2]
[350512927,1737937840608,-500.0,0.00017534,2]
[350512928,1737937840618,-500.0,0.00017534,2]
[350512929,1737937840627,-500.0,0.00017534,2]
[350512930,1737937840636,-500.0,0.00017534,2]
[350512931,1737937840646,-500.0,0.00017534,2]
[350512932,1737937840655,-500.0,0.00017534,2]
[350512933,1737937840665,-500.0,0.00017534,2]
[350512934,1737937840674,-939.3,0.00017534,2]
[350512935,1737937840683,-500.0,0.00017534,2]
[350512936,1737937840692,-500.0,0.00017534,2]
[350512937,1737937840702,-806.44,0.00017534,2]
[350512938,1737937840711,-500.0,0.00017534,2]
[350512939,1737937840721,-4325.13,0.0001767,2]
[350512940,1737937840731,-500.0,0.00017671,2]
[350512941,1737937840740,-500.74,0.00017671,2]
[350512942,1737937840749,-2777.71,0.00017671,2]
[350512943,1737937840759,-500.0,0.00017671,2]
[350512944,1737937840768,-500.0,0.00017671,2]
[350512945,1737937840778,-500.0,0.00017671,2]
[350512946,1737937840787,-766.97,0.00017671,2]
[350512947,1737937840796,-500.0,0.00017671,2]
[350512948,1737937840806,-500.0,0.00017671,2]
[350512949,1737937840815,-500.0,0.00017671,2]
[350512950,1737937840824,-500.0,0.00017671,2]
[350512951,1737937840834,-500.0,0.00017671,2]
[350512952,1737937840843,-500.0,0.00017671,2]
[350512953,1737937840854,-500.0,0.00017671,2]
[350512954,1737937840864,-500.0,0.00017671,2]
[350512955,1737937840874,-939.3,0.00017671,2]
[350512956,1737937840884,-381.1377961,0.00017671,2]
[350512957,1737937840899,-806.44,0.00017671,2]
[350512958,1737937840909,-500.0,0.00017671,2]
[350512959,1737937840918,-7458.15634357,0.000177,2]
[350512960,1737937840928,-4325.13,0.00017807,2]
[350512961,1737937840937,-500.0,0.00017808,2]
[350512962,1737937840946,-500.74,0.00017808,2]
[350512963,1737937840955,-2777.71,0.00017808,2]
[350512964,1737937840965,-500.0,0.00017808,2]
[350512965,1737937840975,-766.97,0.00017808,2]
[350512966,1737937840985,-500.0,0.00017808,2]
[350512967,1737937840995,-500.0,0.00017808,2]
[350512968,1737937841006,-500.0,0.00017808,2]
[350512969,1737937841016,-500.0,0.00017808,2]
[350512970,1737937841027,-939.3,0.00017808,2]
[350512971,1737937841037,-806.44,0.00017808,2]
[350512972,1737937841046,-500.0,0.00017808,2]
[350512973,1737937841056,-395.0,0.0001781,2]
[350512974,1737937841066,-500.76968898,0.000179,2]
[350512975,1737937841076,-2478.55,0.000179,2]
[350512976,1737937841085,-500.0,0.00017909,2]
[350512977,1737937841095,-1200.0,0.0001791,2]
[350512978,1737937841107,-500.0,0.00017945,2]
[350512979,1737937841117,-500.74,0.00017945,2]
[350512980,1737937841127,-2777.71,0.00017945,2]
[350512981,1737937841136,-213.79,0.00017945,2]
[350512982,1737937841147,-766.97,0.00017945,2]
[350512983,1737937841158,-500.0,0.00017945,2]
[350512984,1737937841167,-500.0,0.00017945,2]
[350512985,1737937841177,-939.3,0.00017945,2]
[350512986,1737937841187,-806.44,0.00017945,2]
[350512987,1737937841197,-500.0,0.00017945,2]
[350512988,1737937841207,-4325.13,0.00017962,2]
[350512989,1737937841217,-500.76968897,0.00018072,2]
[350512990,1737937841227,-500.0,0.00018082,2]
[350512991,1737937841238,-500.74,0.00018082,2]
[350512992,1737937841247,-2777.71,0.00018082,2]
[350512993,1737937841257,-766.97,0.00018082,2]
[350512994,1737937841267,-500.0,0.00018082,2]
[350512995,1737937841277,-500.0,0.00018082,2]
[350512996,1737937841287,-939.3,0.00018082,2]
[350512997,1737937841297,-806.44,0.00018082,2]
[350512998,1737937841308,-500.0,0.00018082,2]
[350512999,1737937841318,-206.7658457,0.00018085,2]
[350513000,1737937841328,-500.0,0.00018164,2]
[350513001,1737937841338,-413.7,0.00018219,2]
[350513002,1737937841352,-500.74,0.00018219,2]
[350513003,1737937841362,-2777.71,0.00018219,2]
[350513004,1737937841372,-766.97,0.00018219,2]
[350513005,1737937841382,-500.0,0.00018219,2]
[350513006,1737937841391,-500.0,0.00018219,2]
[350513007,1737937841401,-939.3,0.00018219,2]
[350513008,1737937841411,-806.44,0.00018219,2]
[350513009,1737937841422,-500.0,0.00018219,2]
[350513010,1737937841431,-500.76968897,0.00018245,2]
[350513011,1737937841441,-4325.13,0.00018354,2]
[350513012,1737937841451,-500.74,0.00018356,2]
[350513013,1737937841461,-2777.71,0.00018356,2]
[350513014,1737937841470,-766.97,0.00018356,2]
[350513015,1737937841480,-500.0,0.00018356,2]
[350513016,1737937841490,-500.0,0.00018356,2]
[350513017,1737937841499,-939.3,0.00018356,2]
[350513018,1737937841509,-806.44,0.00018356,2]
[350513019,1737937841519,-500.0,0.00018356,2]